[Event "*** Titled Tuesday Blitz"]
[Site "Chess.com"]
[Date "2020.05.12"]
[Round "9"]
[White "CuattroPrincesses"]
[Black "Kate1606"]
[Result "1-0"]
[WhiteElo "2268"]
[BlackElo "2066"]
[TimeControl "180+1"]
[EndTime "11:40:43 PDT"]
[Termination "CuattroPrincesses won by resignation"]

1. e4 {[%clk 0:03:00.9]} 1... c5 {[%clk 0:02:59.5]} 2. Nf3 {[%clk 0:03:00.4]}
2... g6 {[%clk 0:02:59.1]} 3. d4 {[%clk 0:03:00.7]} 3... cxd4 {[%clk 0:02:59.3]}
4. Nxd4 {[%clk 0:03:01.6]} 4... Nc6 {[%clk 0:02:58.7]} 5. c4 {[%clk 0:03:01.4]}
5... Nf6 {[%clk 0:02:57.3]} 6. Nc3 {[%clk 0:03:00.2]} 6... d6 {[%clk 0:02:57]}
7. Be2 {[%clk 0:02:59.5]} 7... Nxd4 {[%clk 0:02:56.4]} 8. Qxd4 {[%clk
0:03:00.4]} 8... Bg7 {[%clk 0:02:56.9]} 9. Be3 {[%clk 0:03:00.2]} 9... O-O
{[%clk 0:02:57]} 10. Qd2 {[%clk 0:03:00.6]} 10... Be6 {[%clk 0:02:54.5]} 11. Rc1
{[%clk 0:03:00.7]} 11... Qa5 {[%clk 0:02:54]} 12. f3 {[%clk 0:02:57.8]} 12...
Rfc8 {[%clk 0:02:53.7]} 13. b3 {[%clk 0:02:57.1]} 13... a6 {[%clk 0:02:53.1]}
14. Na4 {[%clk 0:02:56.9]} 14... Qxd2+ {[%clk 0:02:51.1]} 15. Kxd2 {[%clk
0:02:57.8]} 15... Nd7 {[%clk 0:02:41.8]} 16. f4 {[%clk 0:02:57]} 16... f5 {[%clk
0:02:35.3]} 17. exf5 {[%clk 0:02:54.2]} 17... Bxf5 {[%clk 0:02:24.6]} 18. Bf3
{[%clk 0:02:53.5]} 18... Rc7 {[%clk 0:02:08.7]} 19. Rhe1 {[%clk 0:02:26.6]}
19... Rac8 {[%clk 0:01:51.8]} 20. Nb6 {[%clk 0:02:15.8]} 20... Nxb6 {[%clk
0:01:50.3]} 21. Bxb6 {[%clk 0:02:16.7]} 21... Rd7 {[%clk 0:01:50.6]} 22. g4
{[%clk 0:02:12.9]} 22... Bh6 {[%clk 0:01:25.4]} 23. gxf5 {[%clk 0:01:43.3]}
23... Bxf4+ {[%clk 0:01:24.1]} 24. Kd3 {[%clk 0:01:42.7]} 24... Bxc1 {[%clk
0:01:21.8]} 25. Rxc1 {[%clk 0:01:43.6]} 25... gxf5 {[%clk 0:01:20.6]} 26. Bd5+
{[%clk 0:01:40.3]} 26... Kf8 {[%clk 0:01:13.5]} 27. Be6 {[%clk 0:01:35.3]} 27...
Rdc7 {[%clk 0:01:01.8]} 28. Rg1 {[%clk 0:01:32.1]} 1-0

[Event "*** Titled Tuesday Blitz"]
[Site "Chess.com"]
[Date "2020.05.12"]
[Round "9"]
[White "Grandmaster2B"]
[Black "top_bu_tz"]
[Result "1-0"]
[WhiteElo "2455"]
[BlackElo "2208"]
[TimeControl "180+1"]
[EndTime "11:40:44 PDT"]
[Termination "Grandmaster2B won by resignation"]

1. e4 {[%clk 0:03:00.9]} 1... e5 {[%clk 0:02:59.5]} 2. Nf3 {[%clk 0:03:00.8]}
2... Nc6 {[%clk 0:02:58.3]} 3. Bb5 {[%clk 0:03:00.9]} 3... Nf6 {[%clk
0:02:57.9]} 4. O-O {[%clk 0:03:00.7]} 4... Nxe4 {[%clk 0:02:58]} 5. Re1 {[%clk
0:02:59.6]} 5... Nd6 {[%clk 0:02:57.8]} 6. Nxe5 {[%clk 0:03:00.5]} 6... Nxe5
{[%clk 0:02:56.6]} 7. Rxe5+ {[%clk 0:03:01.4]} 7... Be7 {[%clk 0:02:57.3]} 8.
Bf1 {[%clk 0:03:02.3]} 8... O-O {[%clk 0:02:57.5]} 9. d4 {[%clk 0:03:02.8]} 9...
Bf6 {[%clk 0:02:57.9]} 10. Re1 {[%clk 0:03:03.7]} 10... Nf5 {[%clk 0:02:58.5]}
11. c3 {[%clk 0:03:04]} 11... d5 {[%clk 0:02:59]} 12. Bf4 {[%clk 0:03:04.3]}
12... Nd6 {[%clk 0:02:54.6]} 13. Nd2 {[%clk 0:03:04.6]} 13... Bf5 {[%clk
0:02:54.3]} 14. Nf3 {[%clk 0:03:01.8]} 14... Be4 {[%clk 0:02:42.4]} 15. Ne5
{[%clk 0:03:00.7]} 15... Bxe5 {[%clk 0:02:36.6]} 16. dxe5 {[%clk 0:02:56.1]}
16... Nc8 {[%clk 0:02:22.2]} 17. f3 {[%clk 0:02:53.5]} 17... Bg6 {[%clk
0:02:21.6]} 18. Qd2 {[%clk 0:02:54.4]} 18... c6 {[%clk 0:02:19.7]} 19. Rad1
{[%clk 0:02:54.3]} 19... Re8 {[%clk 0:02:20.1]} 20. c4 {[%clk 0:02:54.2]} 20...
Qb6+ {[%clk 0:02:19]} 21. Be3 {[%clk 0:02:53.7]} 21... Qc7 {[%clk 0:02:03.7]}
22. cxd5 {[%clk 0:02:49.7]} 22... cxd5 {[%clk 0:01:35.4]} 23. Qxd5 {[%clk
0:02:50.6]} 23... Nb6 {[%clk 0:01:32]} 24. Qd6 {[%clk 0:02:50.1]} 24... Qc2
{[%clk 0:01:16]} 25. Rd2 {[%clk 0:02:43.9]} 25... Qa4 {[%clk 0:01:08.9]} 26. b3
{[%clk 0:02:29.8]} 26... Qa5 {[%clk 0:01:01.5]} 27. Bc5 {[%clk 0:02:29.6]} 27...
Nc4 {[%clk 0:00:37.6]} 28. Bxc4 {[%clk 0:02:18]} 28... Rad8 {[%clk 0:00:37.1]}
29. Bb4 {[%clk 0:02:18.4]} 29... Rxd6 {[%clk 0:00:16.7]} 30. Bxa5 {[%clk
0:02:15.8]} 30... Rxd2 {[%clk 0:00:17.6]} 31. Bxd2 {[%clk 0:02:16.3]} 1-0

[Event "*** Titled Tuesday Blitz"]
[Site "Chess.com"]
[Date "2020.05.12"]
[Round "9"]
[White "Shield12"]
[Black "kleinebeer98"]
[Result "0-1"]
[WhiteElo "2792"]
[BlackElo "2679"]
[TimeControl "180+1"]
[EndTime "11:40:45 PDT"]
[Termination "kleinebeer98 won by resignation"]

1. e4 {[%clk 0:03:00.9]} 1... e5 {[%clk 0:02:58.7]} 2. Nf3 {[%clk 0:03:00.8]}
2... Nc6 {[%clk 0:02:56.5]} 3. Bb5 {[%clk 0:03:01.3]} 3... f5 {[%clk 0:02:56.4]}
4. Nc3 {[%clk 0:03:00.4]} 4... fxe4 {[%clk 0:02:56.2]} 5. Nxe4 {[%clk
0:03:01.3]} 5... Nf6 {[%clk 0:02:56.7]} 6. Nxf6+ {[%clk 0:03:00.4]} 6... Qxf6
{[%clk 0:02:57.6]} 7. Qe2 {[%clk 0:03:00.8]} 7... Be7 {[%clk 0:02:58.1]} 8. Bxc6
{[%clk 0:02:56.8]} 8... dxc6 {[%clk 0:02:59]} 9. Nxe5 {[%clk 0:02:54.7]} 9...
O-O {[%clk 0:02:48]} 10. O-O {[%clk 0:02:54.3]} 10... c5 {[%clk 0:02:36.1]} 11.
d3 {[%clk 0:02:51.9]} 11... Be6 {[%clk 0:02:19.8]} 12. Bd2 {[%clk 0:02:47.9]}
12... Bd6 {[%clk 0:02:14.7]} 13. Bc3 {[%clk 0:02:45.3]} 13... Rae8 {[%clk
0:02:11]} 14. f4 {[%clk 0:02:39.4]} 14... Bd5 {[%clk 0:01:57.5]} 15. Qg4 {[%clk
0:02:36.3]} 15... Qf5 {[%clk 0:01:35.3]} 16. Qg3 {[%clk 0:02:35.1]} 16... Re6
{[%clk 0:01:27.5]} 17. Rae1 {[%clk 0:02:31.4]} 17... Qh5 {[%clk 0:01:19.1]} 18.
a3 {[%clk 0:02:21.1]} 18... Rff6 {[%clk 0:01:08.6]} 19. Rf2 {[%clk 0:02:02.3]}
19... Bxe5 {[%clk 0:00:45.2]} 20. Rxe5 {[%clk 0:01:56.7]} 20... Rxe5 {[%clk
0:00:42.7]} 21. Bxe5 {[%clk 0:01:57.6]} 21... Rg6 {[%clk 0:00:42.5]} 22. Qe3
{[%clk 0:01:35.5]} 22... Qd1+ {[%clk 0:00:41.3]} 0-1

[Event "*** Titled Tuesday Blitz"]
[Site "Chess.com"]
[Date "2020.05.12"]
[Round "9"]
[White "KarstenHansch"]
[Black "Oglob71"]
[Result "1-0"]
[WhiteElo "2382"]
[BlackElo "2485"]
[TimeControl "180+1"]
[EndTime "11:40:49 PDT"]
[Termination "KarstenHansch won by resignation"]

1. e4 {[%clk 0:03:00.9]} 1... c5 {[%clk 0:02:59]} 2. Nf3 {[%clk 0:02:59.5]} 2...
d6 {[%clk 0:02:59.4]} 3. Bb5+ {[%clk 0:02:59.4]} 3... Bd7 {[%clk 0:02:58.4]} 4.
Bxd7+ {[%clk 0:02:59.1]} 4... Qxd7 {[%clk 0:02:58.9]} 5. c4 {[%clk 0:02:59]}
5... Nc6 {[%clk 0:02:59]} 6. Nc3 {[%clk 0:02:56.2]} 6... g6 {[%clk 0:02:59]} 7.
d4 {[%clk 0:02:55.9]} 7... cxd4 {[%clk 0:02:59.2]} 8. Nxd4 {[%clk 0:02:56.2]}
8... Bg7 {[%clk 0:02:59.6]} 9. Be3 {[%clk 0:02:56.2]} 9... Nf6 {[%clk
0:02:59.5]} 10. f3 {[%clk 0:02:56.5]} 10... O-O {[%clk 0:02:58.6]} 11. O-O
{[%clk 0:02:56]} 11... Rac8 {[%clk 0:02:57.3]} 12. b3 {[%clk 0:02:55.5]} 12...
a6 {[%clk 0:02:56.8]} 13. Rc1 {[%clk 0:02:53.7]} 13... Qd8 {[%clk 0:02:56.4]}
14. Qd2 {[%clk 0:02:53.5]} 14... e6 {[%clk 0:02:55]} 15. Rfd1 {[%clk 0:02:52.6]}
15... d5 {[%clk 0:02:53.1]} 16. cxd5 {[%clk 0:02:50.4]} 16... exd5 {[%clk
0:02:52.1]} 17. exd5 {[%clk 0:02:40.3]} 17... Nxd5 {[%clk 0:02:50.3]} 18. Nxd5
{[%clk 0:02:31.2]} 18... Qxd5 {[%clk 0:02:49.9]} 19. Nxc6 {[%clk 0:02:29.9]}
19... bxc6 {[%clk 0:02:47.1]} 20. Qxd5 {[%clk 0:02:29.1]} 20... cxd5 {[%clk
0:02:47.3]} 21. Rxc8 {[%clk 0:02:29.2]} 21... Rxc8 {[%clk 0:02:47.6]} 22. Rxd5
{[%clk 0:02:29.2]} 22... Bb2 {[%clk 0:02:38.6]} 23. Kf2 {[%clk 0:02:25.8]} 23...
Rc2+ {[%clk 0:02:35.9]} 24. Rd2 {[%clk 0:02:24.3]} 24... Rxd2+ {[%clk
0:02:32.1]} 25. Bxd2 {[%clk 0:02:25.2]} 25... Kf8 {[%clk 0:02:32.6]} 26. Ke3
{[%clk 0:02:23.3]} 26... Ke7 {[%clk 0:02:32.9]} 27. Kd3 {[%clk 0:02:22.7]} 27...
Kd7 {[%clk 0:02:31.9]} 28. Bc3 {[%clk 0:02:21.4]} 28... Bc1 {[%clk 0:02:31.4]}
29. Kc4 {[%clk 0:02:21.3]} 29... Kc6 {[%clk 0:02:30.9]} 30. a4 {[%clk
0:02:19.1]} 30... Bf4 {[%clk 0:02:31.2]} 31. g3 {[%clk 0:02:18]} 31... Be3
{[%clk 0:02:30.8]} 32. b4 {[%clk 0:02:16]} 32... h5 {[%clk 0:02:27.3]} 33. b5+
{[%clk 0:02:13.7]} 33... axb5+ {[%clk 0:02:27.8]} 34. axb5+ {[%clk 0:02:13.9]}
34... Kb7 {[%clk 0:02:26.8]} 35. Bd4 {[%clk 0:02:13.4]} 35... Bd2 {[%clk
0:02:24.2]} 36. Kd5 {[%clk 0:02:13.2]} 36... Bb4 {[%clk 0:02:23.5]} 37. Bc5
{[%clk 0:02:03.8]} 37... Bd2 {[%clk 0:02:22.7]} 38. Kd6 {[%clk 0:01:58.9]} 38...
f5 {[%clk 0:02:22.4]} 39. Ke6 {[%clk 0:01:55.5]} 39... f4 {[%clk 0:02:21.1]} 40.
gxf4 {[%clk 0:01:53.9]} 40... Bxf4 {[%clk 0:02:20.2]} 41. h3 {[%clk 0:01:54]}
41... Bd2 {[%clk 0:02:13.7]} 42. Kf6 {[%clk 0:01:50.8]} 42... g5 {[%clk
0:02:13.6]} 43. Kg6 {[%clk 0:01:49.8]} 43... h4 {[%clk 0:02:13.6]} 44. Kh5
{[%clk 0:01:43.6]} 44... Kc7 {[%clk 0:02:09]} 45. Be7 {[%clk 0:01:41.9]} 45...
Kb6 {[%clk 0:02:08.8]} 46. Bxg5 {[%clk 0:01:42]} 46... Be1 {[%clk 0:02:08.7]}
47. Bxh4 {[%clk 0:01:42.1]} 47... Bc3 {[%clk 0:02:07.8]} 48. Kg6 {[%clk
0:01:41.1]} 48... Kxb5 {[%clk 0:02:08.2]} 49. Bf6 {[%clk 0:01:41]} 49... Bd2
{[%clk 0:02:07.8]} 50. h4 {[%clk 0:01:39.1]} 50... Kc4 {[%clk 0:02:08.2]} 51. h5
{[%clk 0:01:39]} 51... Kd3 {[%clk 0:02:08.5]} 52. Bg5 {[%clk 0:01:38.1]} 52...
Bc3 {[%clk 0:02:07]} 53. f4 {[%clk 0:01:37.9]} 53... Ke4 {[%clk 0:02:07.1]} 54.
f5 {[%clk 0:01:36.6]} 54... Bb2 {[%clk 0:02:04.5]} 55. f6 {[%clk 0:01:36.5]}
55... Ke5 {[%clk 0:02:04.5]} 56. h6 {[%clk 0:01:36.4]} 56... Ke6 {[%clk
0:02:03.9]} 57. h7 {[%clk 0:01:36.6]} 1-0

[Event "*** Titled Tuesday Blitz"]
[Site "Chess.com"]
[Date "2020.05.12"]
[Round "9"]
[White "TheoSlade"]
[Black "WonderChampion"]
[Result "1-0"]
[WhiteElo "2270"]
[BlackElo "1901"]
[TimeControl "180+1"]
[EndTime "11:41:00 PDT"]
[Termination "TheoSlade won by checkmate"]

1. d4 {[%clk 0:03:00.9]} 1... d5 {[%clk 0:02:59.3]} 2. c4 {[%clk 0:03:01.3]}
2... e6 {[%clk 0:02:58.6]} 3. Nc3 {[%clk 0:03:01.8]} 3... c6 {[%clk 0:02:58.7]}
4. e3 {[%clk 0:03:01.4]} 4... Nf6 {[%clk 0:02:57.8]} 5. Nf3 {[%clk 0:03:01.8]}
5... Bd6 {[%clk 0:02:51.2]} 6. Bd3 {[%clk 0:03:01.3]} 6... dxc4 {[%clk
0:02:50.2]} 7. Bxc4 {[%clk 0:03:01.3]} 7... b5 {[%clk 0:02:50.4]} 8. Bd3 {[%clk
0:02:59.7]} 8... Nbd7 {[%clk 0:02:49.7]} 9. O-O {[%clk 0:02:54.3]} 9... O-O
{[%clk 0:02:48.8]} 10. e4 {[%clk 0:02:48.8]} 10... e5 {[%clk 0:02:46.8]} 11. d5
{[%clk 0:02:43.6]} 11... cxd5 {[%clk 0:02:32.8]} 12. Nxb5 {[%clk 0:02:28.2]}
12... dxe4 {[%clk 0:02:20.1]} 13. Nxd6 {[%clk 0:02:27.9]} 13... exd3 {[%clk
0:02:18.2]} 14. Qxd3 {[%clk 0:02:26.7]} 14... Qe7 {[%clk 0:02:13.9]} 15. Re1
{[%clk 0:02:13.7]} 15... Nc5 {[%clk 0:02:02.9]} 16. Nxc8 {[%clk 0:02:06.5]}
16... Raxc8 {[%clk 0:01:57.8]} 17. Qf5 {[%clk 0:02:03.5]} 17... e4 {[%clk
0:01:45.2]} 18. Bg5 {[%clk 0:02:03.7]} 18... Rfd8 {[%clk 0:01:39.7]} 19. Bxf6
{[%clk 0:01:49.3]} 19... Qxf6 {[%clk 0:01:37.6]} 20. Qxf6 {[%clk 0:01:46.4]}
20... gxf6 {[%clk 0:01:37.3]} 21. Nh4 {[%clk 0:01:45.1]} 21... Rd2 {[%clk
0:01:34.5]} 22. b4 {[%clk 0:01:45.2]} 22... Nd3 {[%clk 0:01:30.5]} 23. Rxe4
{[%clk 0:01:44.8]} 23... Nxf2 {[%clk 0:01:27.2]} 24. Rf4 {[%clk 0:01:43.1]}
24... Nd3 {[%clk 0:01:24.2]} 25. Rxf6 {[%clk 0:01:38.9]} 25... Rcc2 {[%clk
0:01:23.1]} 26. Raf1 {[%clk 0:01:33.2]} 26... Ne5 {[%clk 0:01:19.5]} 27. R6f2
{[%clk 0:01:26.3]} 27... Rxa2 {[%clk 0:01:12.5]} 28. Rxd2 {[%clk 0:01:26.3]}
28... Rxd2 {[%clk 0:01:11.4]} 29. Ra1 {[%clk 0:01:26.5]} 29... Rb2 {[%clk
0:01:09.3]} 30. Rxa7 {[%clk 0:01:23.6]} 30... Rxb4 {[%clk 0:01:08.2]} 31. Nf5
{[%clk 0:01:23]} 31... Nd3 {[%clk 0:01:04.5]} 32. Ra8+ {[%clk 0:01:22.6]} 32...
Rb8 {[%clk 0:00:57.5]} 33. Rxb8# {[%clk 0:01:23.5]} 1-0

[Event "*** Titled Tuesday Blitz"]
[Site "Chess.com"]
[Date "2020.05.12"]
[Round "9"]
[White "dianosky"]
[Black "atwalcb"]
[Result "0-1"]
[WhiteElo "2385"]
[BlackElo "2305"]
[TimeControl "180+1"]
[EndTime "11:41:07 PDT"]
[Termination "atwalcb won by checkmate"]

1. d4 {[%clk 0:03:00.9]} 1... d6 {[%clk 0:02:59.6]} 2. c4 {[%clk 0:03:01.2]}
2... e5 {[%clk 0:02:52.7]} 3. d5 {[%clk 0:03:01.6]} 3... f5 {[%clk 0:02:48.2]}
4. Nc3 {[%clk 0:03:02.5]} 4... Nf6 {[%clk 0:02:47.8]} 5. f3 {[%clk 0:03:01.9]}
5... Be7 {[%clk 0:02:47.7]} 6. e3 {[%clk 0:03:01.3]} 6... O-O {[%clk 0:02:47.5]}
7. Bd3 {[%clk 0:03:02.1]} 7... a5 {[%clk 0:02:45.2]} 8. Qc2 {[%clk 0:03:01.9]}
8... g6 {[%clk 0:02:34.1]} 9. Nge2 {[%clk 0:03:00.1]} 9... Na6 {[%clk 0:02:34]}
10. a3 {[%clk 0:02:57.7]} 10... Nc5 {[%clk 0:02:33.7]} 11. Rb1 {[%clk 0:02:55]}
11... a4 {[%clk 0:02:31]} 12. O-O {[%clk 0:02:49.4]} 12... b6 {[%clk 0:02:25.4]}
13. Ng3 {[%clk 0:02:49.1]} 13... h5 {[%clk 0:02:20.1]} 14. Be2 {[%clk
0:02:47.2]} 14... h4 {[%clk 0:02:18.1]} 15. Nh1 {[%clk 0:02:47.4]} 15... Ba6
{[%clk 0:02:10]} 16. Bd2 {[%clk 0:02:46.8]} 16... Bb7 {[%clk 0:02:07.3]} 17. Be1
{[%clk 0:02:43.7]} 17... Nh7 {[%clk 0:02:01.8]} 18. Bf2 {[%clk 0:02:43.4]} 18...
g5 {[%clk 0:01:53.6]} 19. e4 {[%clk 0:02:38.5]} 19... f4 {[%clk 0:01:49.6]} 20.
h3 {[%clk 0:02:36.5]} 20... Bc8 {[%clk 0:01:47.5]} 21. Bxc5 {[%clk 0:02:34.4]}
21... bxc5 {[%clk 0:01:46.9]} 22. Nxa4 {[%clk 0:02:34.7]} 22... Bd7 {[%clk
0:01:43.4]} 23. Nc3 {[%clk 0:02:34.8]} 23... Nf6 {[%clk 0:01:43.6]} 24. Nf2
{[%clk 0:02:35.4]} 24... Nh5 {[%clk 0:01:43.5]} 25. Rfc1 {[%clk 0:02:32.6]}
25... Ng3 {[%clk 0:01:43.1]} 26. Bf1 {[%clk 0:02:32.9]} 26... Qc8 {[%clk
0:01:32.5]} 27. Ra1 {[%clk 0:02:25.6]} 27... Qa6 {[%clk 0:01:32.2]} 28. Qd3
{[%clk 0:02:15.1]} 28... Rfb8 {[%clk 0:01:30]} 29. b4 {[%clk 0:02:13.8]} 29...
cxb4 {[%clk 0:01:28]} 30. axb4 {[%clk 0:02:14.7]} 30... Qxa1 {[%clk 0:01:27.8]}
31. Rxa1 {[%clk 0:02:15.1]} 31... Rxa1 {[%clk 0:01:28.6]} 32. Nfd1 {[%clk
0:02:07.3]} 32... Rxb4 {[%clk 0:01:21.4]} 33. Kf2 {[%clk 0:02:06.5]} 33... Bd8
{[%clk 0:01:08.9]} 34. Qd2 {[%clk 0:01:49.7]} 34... Rb3 {[%clk 0:01:00.9]} 35.
Qc2 {[%clk 0:01:46.1]} 35... Rxc3 {[%clk 0:00:56]} 36. Qxc3 {[%clk 0:01:38.6]}
36... Rxd1 {[%clk 0:00:55.4]} 37. Be2 {[%clk 0:01:39]} 37... Nh1# {[%clk
0:00:54.3]} 0-1

[Event "*** Titled Tuesday Blitz"]
[Site "Chess.com"]
[Date "2020.05.12"]
[Round "9"]
[White "Andro2"]
[Black "levallem"]
[Result "0-1"]
[WhiteElo "2422"]
[BlackElo "2173"]
[TimeControl "180+1"]
[EndTime "11:41:09 PDT"]
[Termination "levallem won by resignation"]

1. d4 {[%clk 0:03:00.9]} 1... Nf6 {[%clk 0:02:54.9]} 2. Nf3 {[%clk 0:02:56.4]}
2... e6 {[%clk 0:02:53.8]} 3. Bg5 {[%clk 0:02:51.4]} 3... Be7 {[%clk 0:02:53.3]}
4. Nbd2 {[%clk 0:02:50.6]} 4... d5 {[%clk 0:02:52.8]} 5. e3 {[%clk 0:02:50.6]}
5... O-O {[%clk 0:02:53.1]} 6. Bd3 {[%clk 0:02:51.1]} 6... c5 {[%clk 0:02:53.1]}
7. c3 {[%clk 0:02:49.7]} 7... cxd4 {[%clk 0:02:52.5]} 8. exd4 {[%clk 0:02:49.2]}
8... b6 {[%clk 0:02:48.7]} 9. Qe2 {[%clk 0:02:48.4]} 9... a5 {[%clk 0:02:42.8]}
10. O-O {[%clk 0:02:39.1]} 10... Ba6 {[%clk 0:02:40.2]} 11. Rfe1 {[%clk
0:02:38.7]} 11... Bxd3 {[%clk 0:02:38.5]} 12. Qxd3 {[%clk 0:02:38.6]} 12... h6
{[%clk 0:02:39.1]} 13. Bf4 {[%clk 0:02:37.4]} 13... Nbd7 {[%clk 0:02:33.2]} 14.
h3 {[%clk 0:02:35.8]} 14... Qc8 {[%clk 0:02:30.1]} 15. a4 {[%clk 0:02:34]} 15...
Qa6 {[%clk 0:02:29.1]} 16. Qe3 {[%clk 0:02:22.4]} 16... b5 {[%clk 0:02:23.4]}
17. Ne5 {[%clk 0:02:07]} 17... bxa4 {[%clk 0:02:18.9]} 18. Bxh6 {[%clk
0:02:03.2]} 18... gxh6 {[%clk 0:02:08.4]} 19. Qxh6 {[%clk 0:02:02.7]} 19... Nxe5
{[%clk 0:02:00.9]} 20. Rxe5 {[%clk 0:02:01.7]} 20... Nh7 {[%clk 0:01:46.1]} 21.
Rh5 {[%clk 0:01:58.3]} 21... Qd3 {[%clk 0:01:45]} 22. Rh4 {[%clk 0:01:52.5]}
22... Bxh4 {[%clk 0:01:41.6]} 23. Nf3 {[%clk 0:01:45.1]} 23... Bf6 {[%clk
0:01:38.7]} 24. Re1 {[%clk 0:01:35.7]} 24... Rfb8 {[%clk 0:01:34.8]} 25. Re3
{[%clk 0:01:31.7]} 25... Qg6 {[%clk 0:01:29.3]} 26. Qf4 {[%clk 0:01:31.7]} 26...
Rxb2 {[%clk 0:01:24.5]} 27. Ne5 {[%clk 0:01:30.6]} 27... Bxe5 {[%clk 0:01:21.9]}
28. dxe5 {[%clk 0:01:30.3]} 28... a3 {[%clk 0:01:00.8]} 29. Rg3 {[%clk
0:01:24.8]} 29... a2 {[%clk 0:01:00.4]} 30. Rxg6+ {[%clk 0:01:24.3]} 30... fxg6
{[%clk 0:01:00.9]} 31. Qg4 {[%clk 0:01:17.1]} 31... Nf8 {[%clk 0:01:00]} 0-1

[Event "*** Titled Tuesday Blitz"]
[Site "Chess.com"]
[Date "2020.05.12"]
[Round "9"]
[White "Nagimov_Artiom"]
[Black "chenxiaoyuer"]
[Result "0-1"]
[WhiteElo "2379"]
[BlackElo "2240"]
[TimeControl "180+1"]
[EndTime "11:41:14 PDT"]
[Termination "chenxiaoyuer won by resignation"]

1. d4 {[%clk 0:03:00.9]} 1... Nf6 {[%clk 0:02:59.9]} 2. Nf3 {[%clk 0:03:01.5]}
2... g6 {[%clk 0:03:00.1]} 3. c4 {[%clk 0:03:02.2]} 3... Bg7 {[%clk 0:03:00.3]}
4. g3 {[%clk 0:03:03]} 4... O-O {[%clk 0:03:00.3]} 5. Bg2 {[%clk 0:03:03.8]}
5... d6 {[%clk 0:03:00.7]} 6. Nc3 {[%clk 0:03:04.5]} 6... Nc6 {[%clk 0:03:00.9]}
7. O-O {[%clk 0:03:04.9]} 7... Bg4 {[%clk 0:03:01]} 8. h3 {[%clk 0:03:01.5]}
8... Bxf3 {[%clk 0:03:01]} 9. Bxf3 {[%clk 0:03:02.1]} 9... Nd7 {[%clk
0:03:01.3]} 10. e3 {[%clk 0:02:50.6]} 10... e5 {[%clk 0:03:00.9]} 11. Ne2 {[%clk
0:02:48]} 11... Qf6 {[%clk 0:02:41.5]} 12. Bxc6 {[%clk 0:02:35]} 12... bxc6
{[%clk 0:02:41.1]} 13. f4 {[%clk 0:02:34.2]} 13... exd4 {[%clk 0:02:31.4]} 14.
exd4 {[%clk 0:02:32.5]} 14... Qe6 {[%clk 0:02:30.7]} 15. Qd3 {[%clk 0:02:31.6]}
15... Qxh3 {[%clk 0:02:29.2]} 16. Qf3 {[%clk 0:02:29.7]} 16... c5 {[%clk
0:02:26.3]} 17. Be3 {[%clk 0:02:28.6]} 17... Nf6 {[%clk 0:02:15.4]} 18. Qg2
{[%clk 0:01:58.2]} 18... Qe6 {[%clk 0:02:02.1]} 19. Rf3 {[%clk 0:01:47.5]} 19...
Ng4 {[%clk 0:01:41.9]} 20. Bd2 {[%clk 0:01:35.4]} 20... Qxc4 {[%clk 0:01:36.2]}
21. Rc1 {[%clk 0:01:31.1]} 21... Qxa2 {[%clk 0:01:28.8]} 22. dxc5 {[%clk
0:01:31.2]} 22... Qxb2 {[%clk 0:01:26.1]} 23. Bc3 {[%clk 0:01:20.9]} 23... Bxc3
{[%clk 0:01:21.4]} 24. Rfxc3 {[%clk 0:01:21]} 24... Rfe8 {[%clk 0:01:14.7]} 25.
Nd4 {[%clk 0:01:21.2]} 25... Qxg2+ {[%clk 0:01:09.3]} 26. Kxg2 {[%clk 0:01:21]}
26... dxc5 {[%clk 0:01:09]} 27. Rxc5 {[%clk 0:01:21.3]} 27... Re3 {[%clk
0:01:06.9]} 28. Rxc7 {[%clk 0:01:18.8]} 28... Rae8 {[%clk 0:01:06.5]} 29. Rxa7
{[%clk 0:01:15.9]} 29... Rd3 {[%clk 0:01:06.2]} 30. Ra8 {[%clk 0:01:03.3]} 30...
Rxa8 {[%clk 0:01:03.6]} 0-1

[Event "*** Titled Tuesday Blitz"]
[Site "Chess.com"]
[Date "2020.05.12"]
[Round "9"]
[White "VALPARAISO37"]
[Black "Juanovic"]
[Result "1-0"]
[WhiteElo "2355"]
[BlackElo "2175"]
[TimeControl "180+1"]
[EndTime "11:41:14 PDT"]
[Termination "VALPARAISO37 won by resignation"]

1. d4 {[%clk 0:03:00.9]} 1... d5 {[%clk 0:02:57.1]} 2. c4 {[%clk 0:02:59.3]}
2... c6 {[%clk 0:02:56.9]} 3. Nc3 {[%clk 0:02:58.7]} 3... Nf6 {[%clk 0:02:56.3]}
4. e3 {[%clk 0:02:58]} 4... e6 {[%clk 0:02:55.6]} 5. Nf3 {[%clk 0:02:57.6]} 5...
Nbd7 {[%clk 0:02:55.6]} 6. Bd3 {[%clk 0:02:56.3]} 6... dxc4 {[%clk 0:02:55.4]}
7. Bxc4 {[%clk 0:02:56.7]} 7... b5 {[%clk 0:02:55.5]} 8. Be2 {[%clk 0:02:57.2]}
8... a6 {[%clk 0:02:55.1]} 9. e4 {[%clk 0:02:57]} 9... c5 {[%clk 0:02:55.1]} 10.
e5 {[%clk 0:02:57.2]} 10... Nd5 {[%clk 0:02:54.1]} 11. Nxd5 {[%clk 0:02:53.8]}
11... exd5 {[%clk 0:02:54.1]} 12. dxc5 {[%clk 0:02:53.7]} 12... Nxc5 {[%clk
0:02:54.2]} 13. O-O {[%clk 0:02:51.5]} 13... Be7 {[%clk 0:02:54.1]} 14. Nd4
{[%clk 0:02:49.9]} 14... Bb7 {[%clk 0:02:52]} 15. f4 {[%clk 0:02:49]} 15... O-O
{[%clk 0:02:36.1]} 16. Be3 {[%clk 0:02:45.8]} 16... Ne4 {[%clk 0:02:35.8]} 17.
Nf5 {[%clk 0:02:44.9]} 17... Rc8 {[%clk 0:02:33.9]} 18. Bd4 {[%clk 0:02:41.6]}
18... g6 {[%clk 0:02:21.7]} 19. Nh6+ {[%clk 0:02:40.1]} 19... Kg7 {[%clk
0:02:21]} 20. Ng4 {[%clk 0:02:28.6]} 20... Bc5 {[%clk 0:02:06.8]} 21. Bf3 {[%clk
0:02:21.4]} 21... Qb6 {[%clk 0:02:04.8]} 22. Bxc5 {[%clk 0:02:15.3]} 22... Qxc5+
{[%clk 0:02:04.6]} 23. Kh1 {[%clk 0:02:15.8]} 23... h5 {[%clk 0:02:03.8]} 24.
Bxe4 {[%clk 0:02:14.7]} 24... hxg4 {[%clk 0:02:02.8]} 25. Bd3 {[%clk 0:02:14.4]}
25... g3 {[%clk 0:01:59]} 26. Qg4 {[%clk 0:02:07.4]} 26... gxh2 {[%clk
0:01:56.1]} 27. f5 {[%clk 0:02:06.8]} 27... Qe3 {[%clk 0:01:25.3]} 28. f6+
{[%clk 0:02:02.9]} 28... Kh7 {[%clk 0:01:22.1]} 29. Rf3 {[%clk 0:01:58.8]} 29...
Rc1+ {[%clk 0:01:15.5]} 30. Rxc1 {[%clk 0:01:57.7]} 30... Qxc1+ {[%clk
0:01:15.6]} 31. Bf1 {[%clk 0:01:57.7]} 31... Rh8 {[%clk 0:00:57.1]} 32. Qd7
{[%clk 0:01:45.2]} 32... Rf8 {[%clk 0:00:42.1]} 33. Qxb7 {[%clk 0:01:41.4]}
33... Qxb2 {[%clk 0:00:42]} 34. e6 {[%clk 0:01:39.9]} 1-0